bitfinex-derivatives/quotes_ETHF0:USTF0_20250902
["timestamp","ask_amount","ask_price","bid_price","bid_amount"]
[1756833681363,3.724,4303.1,4303.0,0.4014]
[1756833681562,0.3101,4303.6,4303.0,0.4014]
[1756833681759,0.7208,4304.1,4304.0,0.199]
[1756833681961,0.2061,4304.1,4304.0,0.7014]
[1756833682164,0.7208,4304.1,4304.0,0.199]
[1756833682357,0.4107,4304.1,4303.3,3.2078]
[1756833682560,3.4468,4304.7,4303.9,0.199]
[1756833682561,0.7208,4304.0,4303.9,0.199]
[1756833682758,0.7208,4304.0,4303.9,0.7014]
[1756833683468,0.2061,4304.0,4303.9,0.7014]
[1756833684062,0.239,4304.4,4303.9,0.4014]
[1756833684270,0.3101,4304.3,4304.0,0.3]
[1756833684469,0.5162,4304.3,4304.2,0.7014]
[1756833685061,0.7208,4304.3,4304.2,0.7014]
[1756833686077,3.5179,4304.7,4304.2,0.4014]
[1756833686261,0.7208,4304.6,4304.5,0.199]
[1756833686467,0.7208,4304.6,4304.5,0.7014]
[1756833686965,4.1775,4304.7,4304.6,0.3]
[1756833687164,4.1775,4304.7,4304.6,0.7014]
[1756833687369,4.3836,4304.7,4304.6,0.7014]
[1756833687567,4.6937,4304.7,4304.6,0.7014]
[1756833687866,4.8983,4304.7,4304.6,0.4014]
[1756833688070,0.7208,4304.6,4304.5,0.199]
[1756833688270,0.3101,4304.5,4304.0,3.2078]
[1756833688467,0.2061,4303.9,4303.8,0.7014]
[1756833688667,0.5162,4303.9,4303.8,0.7014]
[1756833689269,0.7208,4303.9,4303.8,0.7014]
[1756833689871,0.2061,4303.9,4303.8,0.7014]
[1756833690463,0.7208,4303.9,4303.8,0.7014]
[1756833691966,0.2061,4303.9,4303.8,0.7014]
[1756833692166,0.7208,4303.9,4303.8,0.7014]
[1756833692670,0.3101,4303.8,4302.8,0.3]
[1756833692867,0.2061,4302.9,4302.8,0.7014]
[1756833693059,0.5162,4302.9,4302.8,0.7014]
[1756833693668,0.7208,4302.9,4302.8,0.7014]
[1756833693871,0.7208,4302.9,4302.8,0.4014]
[1756833694069,0.3101,4303.5,4302.8,0.4014]
[1756833694269,0.5491,4303.5,4302.9,0.3]
[1756833694770,0.2061,4303.0,4302.9,0.7014]
[1756833695074,0.7208,4303.0,4302.9,0.7014]
[1756833696170,3.2078,4303.6,4303.0,0.3]
[1756833696372,3.6185,4303.6,4303.5,0.199]
[1756833696567,3.9286,4303.6,4303.5,0.199]
[1756833696767,3.9286,4303.6,4303.5,0.499]
[1756833697171,3.9286,4303.6,4303.5,0.199]
[1756833697374,3.9286,4303.6,4303.5,0.499]
[1756833698470,3.9286,4303.6,4303.5,0.199]
[1756833698672,3.6185,4303.6,4302.8,0.239]
[1756833698877,0.7208,4303.1,4303.0,0.7014]
[1756833699574,0.7208,4303.1,4303.0,0.4014]
[1756833699772,0.3101,4303.0,4302.7,3.2078]
[1756833699977,0.4107,4302.8,4302.7,3.2078]
[1756833700177,0.7208,4302.8,4302.7,0.199]
[1756833700573,0.7208,4302.8,4301.9,3.2078]
[1756833700777,0.3101,4302.7,4302.1,0.3]
[1756833700973,0.7208,4302.7,4302.6,0.199]
[1756833701174,0.7208,4302.7,4302.3,0.3086]
[1756833701476,0.7208,4302.7,4302.0,0.239]
[1756833701877,0.5248,4302.8,4302.7,0.5194]
[1756833702075,0.7269,4302.8,4302.7,0.7336]
[1756833702273,0.4059,4302.8,4302.7,0.7336]
[1756833702481,0.7269,4302.8,4302.7,0.7336]
[1756833702875,0.2021,4302.8,4302.7,0.7336]
[1756833703477,3.7309,4303.7,4303.6,0.425]
[1756833703678,3.7309,4303.7,4303.6,0.7336]
[1756833704378,3.2078,4303.7,4303.6,0.7336]
[1756833705883,3.5288,4304.2,4303.6,0.7336]
[1756833706371,3.2078,4304.2,4303.2,0.239]
[1756833706577,3.9347,4304.2,4304.1,0.7336]
[1756833707078,0.7269,4304.2,4304.1,0.7336]
[1756833708678,0.2021,4304.2,4304.1,0.7336]
[1756833710283,0.7269,4304.2,4304.1,0.7336]
[1756833711083,0.321,4304.1,4303.6,3.5164]
[1756833711282,0.7269,4303.4,4303.3,0.9716]
[1756833711487,0.321,4303.3,4302.9,3.5164]
[1756833711692,0.5231,4303.0,4302.9,3.9414]
[1756833712378,0.7269,4303.0,4302.9,3.9414]
[1756833714283,0.7269,4303.0,4302.9,3.2078]
[1756833714480,0.7269,4303.0,4302.9,3.4186]
[1756833714882,0.7269,4303.0,4302.9,3.7272]
[1756833716794,0.7269,4303.0,4302.9,3.9414]
[1756833717091,0.321,4303.3,4303.0,0.3086]
[1756833717291,0.167,4303.7,4302.9,3.6328]
[1756833717292,0.7269,4303.0,4302.9,0.5194]
[1756833717484,0.7269,4303.0,4302.9,0.7336]
[1756833717793,0.7269,4303.0,4302.9,0.425]
[1756833717994,0.7269,4303.0,4302.9,0.2108]
[1756833719491,0.7269,4303.0,4302.9,0.7336]
[1756833720086,0.2021,4303.0,4302.9,0.7336]
[1756833720294,0.9093,4303.1,4303.0,0.3086]
[1756833720484,0.9093,4303.1,4303.0,0.7336]
[1756833721388,1.3152,4303.1,4303.0,0.7336]
[1756833721588,1.6362,4303.1,4303.0,0.7336]
[1756833722191,1.6362,4303.1,4303.0,0.425]
[1756833722386,1.6362,4303.1,4302.4,0.238]
[1756833722592,0.2021,4302.5,4302.4,0.9716]
[1756833722792,0.321,4303.0,4302.5,0.3086]
[1756833723092,0.2021,4303.0,4302.9,0.7336]
[1756833723494,0.7269,4303.0,4302.9,0.7336]
[1756833723690,0.2021,4303.0,4302.9,0.7336]
[1756833723891,0.9093,4303.1,4302.9,0.425]
[1756833724091,1.2303,4303.1,4303.0,0.3086]
[1756833724297,1.6362,4303.1,4303.0,0.2108]
[1756833724998,1.1114,4303.1,4303.0,0.7336]
[1756833725493,0.9093,4303.1,4303.0,0.7336]
[1756833725699,0.9093,4303.1,4303.0,5.32899]
[1756833726297,0.9093,4303.1,4303.0,4.9716]
[1756833726598,0.9093,4303.1,4303.0,5.32899]
[1756833726800,0.9093,4303.1,4303.0,5.0966]
[1756833727996,1.1114,4303.1,4303.0,0.9716]
[1756833728299,0.9093,4303.1,4303.0,0.9716]
[1756833728500,1.6362,4303.1,4303.0,0.9716]
[1756833730693,1.1114,4303.1,4303.0,0.9716]
[1756833731295,1.6158,4303.1,4303.0,0.7336]
[1756833731498,1.6158,4303.1,4303.0,0.238]
[1756833731997,1.6158,4303.1,4303.0,0.432]
[1756833732201,1.6158,4303.1,4303.0,0.9475]
[1756833732699,1.6158,4303.1,4303.0,0.194]
[1756833733088,1.6158,4303.1,4303.0,0.7095]
[1756833734203,1.6158,4303.1,4303.0,0.3974]
[1756833734393,1.6158,4303.1,4303.0,0.7095]
[1756833734990,1.6158,4303.1,4302.5,0.3121]
[1756833735198,1.6158,4303.1,4302.6,0.238]
[1756833735398,1.3096,4303.1,4302.6,0.5501]
[1756833735602,0.7032,4302.7,4302.6,0.9475]
[1756833735996,0.9093,4303.1,4302.7,0.3121]
[1756833736201,1.1081,4303.1,4303.0,0.7095]
[1756833736500,0.9093,4303.1,4303.0,0.9475]
[1756833736898,0.1988,4303.1,4303.0,0.9475]
[1756833737091,0.505,4303.4,4303.3,0.3974]
[1756833737301,0.7032,4303.4,4303.3,0.7095]
[1756833738301,0.7032,4303.4,4303.3,0.3974]
[1756833738496,0.7032,4303.4,4303.3,0.7095]
[1756833738695,0.1988,4303.4,4303.3,0.7095]
[1756833738898,0.7032,4304.1,4304.0,0.2034]
[1756833739098,0.7032,4304.1,4304.0,0.7095]
[1756833739300,0.397,4304.1,4304.0,0.7095]
[1756833739504,0.7032,4304.1,4304.0,0.7095]
[1756833740508,0.1988,4304.1,4304.0,0.7095]
[1756833741096,3.6048,4304.8,4304.7,0.194]
[1756833741405,4.21362743,4304.8,4304.7,0.194]
[1756833741608,4.21362743,4304.8,4304.7,0.7095]
[1756833741609,1.31202743,4304.8,4304.7,0.7095]
[1756833741900,0.3062,4305.2,4304.7,0.7095]
[1756833742095,3.911,4305.3,4305.2,0.7095]
[1756833742902,3.911,4305.3,4305.2,0.194]
[1756833743811,0.7032,4305.3,4305.2,0.194]
[1756833744403,0.7032,4304.5,4304.4,3.7139]
[1756833744602,0.7032,4304.5,4304.4,3.9173]
[1756833745501,0.505,4304.5,4304.4,3.9173]
[1756833746798,0.3062,4304.4,4304.0,0.238]
[1756833747002,0.7032,4304.2,4304.1,0.7095]
[1756833747207,0.7032,4304.2,4304.1,0.432]
[1756833747408,0.7032,4304.2,4304.1,0.7441]
[1756833749506,0.7032,4304.2,4304.1,0.9475]
[1756833750307,0.1988,4304.2,4304.1,0.9475]
[1756833750611,3.911,4304.9,4304.8,0.7095]
[1756833751004,0.7032,4304.9,4304.8,0.7095]
[1756833752309,0.397,4304.5,4304.4,3.4018]
[1756833752610,0.7032,4304.5,4304.4,0.194]
[1756833753004,0.7032,4304.5,4304.4,0.7095]
[1756833753408,0.7032,4304.5,4304.2,0.238]
[1756833753625,3.2078,4304.3,4303.7,3.2078]
[1756833753810,0.7032,4303.8,4303.7,3.2078]
[1756833754114,0.7032,4303.8,4303.7,3.7139]
[1756833754306,0.7032,4303.8,4303.7,3.9173]
[1756833754908,0.7032,4303.8,4303.7,3.2078]
[1756833755500,0.7032,4303.8,4303.2,3.7579]
[1756833755904,0.397,4303.8,4303.2,3.7579]
[1756833756110,0.3062,4303.7,4303.2,3.7579]
[1756833756310,0.3062,4303.7,4303.2,4.1553]
[1756833756311,0.1988,4303.3,4303.2,4.1553]
[1756833757010,0.7032,4303.3,4303.2,4.1553]
[1756833760315,0.3062,4303.7,4303.2,4.1553]
[1756833760612,0.7032,4303.4,4303.3,0.7095]
[1756833761912,3.2078,4304.3,4303.3,0.3974]
[1756833762109,0.54845,4304.2,4303.4,0.3085]
[1756833762515,0.23235,4304.1,4303.4,0.3085]
[1756833762718,0.3161,4304.2,4303.4,0.3085]
[1756833763112,0.2107,4304.2,4304.1,0.7243]
[1756833763415,0.22853897,4306.8,4304.8,0.3085]
[1756833763416,3.2078,4305.3,4304.8,0.3085]
[1756833763617,3.4185,4305.3,4305.2,0.7243]
[1756833763915,3.2078,4305.3,4305.2,0.7243]
[1756833764913,0.9752,4305.4,4305.3,0.3085]
[1756833765117,0.9752,4305.4,4305.3,0.7243]
[1756833765506,1.7043,4305.4,4305.3,0.7243]
[1756833765711,1.502,4305.4,4305.3,0.7243]
[1756833765912,0.9752,4305.4,4305.3,0.7243]
[1756833766916,1.1859,4305.4,4305.3,0.7243]
[1756833767421,1.7043,4305.4,4305.3,0.7243]
[1756833767621,1.1859,4305.4,4305.3,0.7243]
[1756833769316,0.9752,4305.4,4305.3,3.9321]
[1756833772724,0.9752,4305.4,4305.3,7.9321]
[1756833772912,0.7291,4306.6,4306.5,0.2011]
[1756833773327,0.7291,4306.6,4306.5,0.7243]
[1756833775823,0.7291,4306.6,4306.5,0.4158]
[1756833776023,0.7291,4306.6,4306.5,0.2011]
[1756833777421,0.3161,4306.5,4306.2,0.238]
[1756833777614,0.1198,4307.0,4306.2,0.9623]
[1756833777615,0.413,4306.3,4306.2,0.9623]
[1756833777815,0.7291,4306.3,4306.2,0.9623]
[1756833782724,0.2107,4306.3,4306.2,0.9623]
[1756833783422,0.5268,4306.3,4306.2,0.9623]
[1756833784427,0.7291,4307.2,4307.1,0.2011]
[1756833784625,0.7291,4307.2,4307.0,0.238]
[1756833785229,0.7291,4307.2,4306.5,0.3085]
[1756833785427,0.7291,4306.6,4306.2,0.3085]
[1756833785631,0.7291,4306.6,4306.3,0.238]
[1756833785820,0.3161,4306.5,4306.3,0.238]
[1756833786022,0.7291,4306.4,4306.3,0.238]
[1756833787624,0.3161,4306.3,4306.1,3.2078]
[1756833787825,0.7291,4306.2,4306.1,3.2078]
[1756833788222,0.7291,4306.2,4306.0,0.238]
[1756833789629,0.3161,4306.1,4305.3,3.2078]
[1756833789834,0.7291,4305.4,4305.3,3.9554]
[1756833790334,0.7291,4305.4,4305.3,4.1701]
[1756833792031,0.7291,4305.4,4305.3,3.2078]
[1756833792334,0.407,4305.0,4304.9,0.7646]
[1756833792634,0.7281,4305.0,4304.9,0.7646]
[1756833792931,0.7281,4305.0,4304.9,0.4505]
[1756833793634,0.3211,4304.9,4304.2,3.2078]
[1756833793836,4.407,4305.0,4304.2,0.238]
[1756833793837,0.3211,4304.6,4304.2,0.238]
[1756833794023,0.7281,4304.3,4304.2,0.4505]
[1756833794227,0.534,4304.3,4304.2,0.9697]
[1756833794428,0.3211,4304.6,4304.2,0.6556]
[1756833794632,0.2129,4304.4,4304.2,0.238]
[1756833794937,0.2129,4304.4,4304.3,0.7317]
[1756833795127,0.7281,4304.4,4304.3,0.7317]
[1756833795928,0.7281,4304.4,4304.3,0.2125]
[1756833796130,0.7281,4304.4,4304.2,0.238]
[1756833796727,0.407,4303.8,4303.7,3.2078]
[1756833796929,0.7281,4303.8,4303.7,3.4203]
[1756833798030,0.7281,4303.8,4303.7,3.9395]
[1756833798236,0.2129,4303.9,4303.8,0.7317]
[1756833799530,0.3211,4304.2,4303.9,0.3141]
[1756833799736,0.7281,4304.2,4304.1,0.2125]
[1756833799923,0.7281,4304.2,4304.1,0.5266]
[1756833800127,0.7281,4304.2,4304.1,0.7317]
[1756833800933,0.7281,4304.2,4303.3,0.3141]
[1756833800934,0.3211,4304.1,4303.3,0.3141]
[1756833801238,0.7281,4303.8,4303.7,0.9697]
[1756833801429,0.7281,4303.8,4303.7,0.7317]
[1756833802232,0.7281,4303.8,4303.2,3.2078]
[1756833802434,0.1941,4303.4,4303.3,0.6556]
[1756833802733,0.7281,4303.4,4303.3,0.9697]
[1756833803338,0.3211,4303.3,4302.8,0.3141]
[1756833803543,0.7281,4302.9,4302.8,0.5266]
[1756833803840,0.7281,4302.9,4302.8,0.7317]
[1756833807330,0.3294,4303.5,4302.9,0.3141]
[1756833807637,0.7364,4303.5,4303.4,0.7317]
[1756833807847,0.7281,4302.8,4302.7,3.9395]
[1756833808141,0.7281,4302.8,4302.7,4.1775]
[1756833808444,0.7281,4302.8,4302.7,3.9395]
[1756833808642,0.7281,4302.8,4302.7,3.6583]
[1756833811545,0.7281,4302.8,4302.7,4.1775]
[1756833811940,0.407,4302.8,4302.7,4.1775]
[1756833812143,0.7281,4303.4,4303.3,0.4176]
[1756833812444,0.7281,4303.4,4303.3,0.7317]
[1756833813038,0.7281,4303.4,4303.3,0.2125]
[1756833813235,0.7281,4303.4,4302.7,0.238]
[1756833813440,0.7281,4303.4,4302.8,0.3141]
[1756833816337,0.3211,4303.3,4302.3,0.3141]
[1756833816543,0.3211,4303.3,4302.5,0.3141]
[1756833816945,0.2129,4302.6,4302.5,0.9697]
[1756833817139,0.1276,4303.5,4302.5,0.9697]
[1756833817140,0.3211,4303.0,4302.6,0.3141]
[1756833817341,0.0083,4303.5,4303.4,0.7317]
[1756833817638,0.0083,4303.5,4303.4,4.1775]
[1756833819541,0.0083,4303.5,4303.4,8.40987]
[1756833820051,0.534,4304.7,4304.6,0.4176]
[1756833820250,3.2078,4305.0,4304.4,0.238]
[1756833820443,3.4207,4305.0,4304.9,0.7317]
[1756833820644,0.2129,4305.0,4304.9,0.7317]
[1756833821451,0.3211,4305.3,4304.9,0.4176]
[1756833821646,0.5259,4305.3,4305.2,0.403]
[1756833821850,0.7255,4305.3,4305.2,0.704]
[1756833822146,0.4044,4305.3,4305.2,0.704]
[1756833822339,0.2048,4305.3,4305.2,0.704]
[1756833822544,0.3157,4305.2,4304.6,0.301]
[1756833822746,0.7201,4304.7,4304.6,0.704]
[1756833822946,0.7201,4304.7,4304.6,0.942]
[1756833823152,0.2048,4304.7,4304.6,0.942]
[1756833823551,0.8541,4305.6,4305.5,0.403]
[1756833823751,0.7201,4305.6,4305.5,0.403]
[1756833824142,3.2078,4305.8,4305.5,0.403]
[1756833824343,0.2048,4305.7,4305.6,0.403]
[1756833824547,0.7201,4305.7,4305.6,0.704]
[1756833824744,0.18977406,4307.3,4305.6,0.704]
[1756833824745,3.2078,4306.3,4305.6,0.704]
[1756833824953,3.2078,4306.3,4306.2,0.704]
[1756833825251,3.9279,4306.3,4306.2,0.704]
[1756833825649,3.9279,4306.3,4305.4,0.301]
[1756833825954,3.9279,4306.3,4305.6,0.301]
[1756833826448,3.9279,4306.3,4306.2,0.1986]
[1756833826642,3.9279,4306.3,4306.2,0.704]
[1756833826847,3.6122,4306.3,4306.2,0.704]
[1756833827047,0.3157,4306.6,4306.2,0.704]
[1756833827048,0.3157,4306.6,4306.3,0.301]
[1756833827347,3.2078,4306.8,4306.6,0.301]
[1756833827548,0.2048,4306.7,4306.6,0.704]
[1756833828154,0.7201,4306.7,4306.6,0.403]
[1756833828355,0.7201,4306.7,4306.6,0.1986]
[1756833828550,0.7201,4306.7,4306.1,0.539]
[1756833828751,0.4044,4306.7,4306.1,0.539]
[1756833828960,0.2048,4306.2,4306.1,0.942]
[1756833829148,0.5205,4306.2,4306.1,0.942]
[1756833830057,0.7201,4306.2,4306.1,0.942]
[1756833830354,3.2078,4306.8,4306.6,0.1986]
[1756833830355,0.4044,4306.7,4306.6,0.1986]
[1756833830559,0.7201,4306.7,4306.6,0.1986]
[1756833831858,0.7201,4306.7,4306.4,0.301]
[1756833832058,0.3157,4306.6,4306.1,0.238]
[1756833832360,0.7201,4306.6,4306.5,0.704]
[1756833833859,0.4044,4306.6,4306.1,0.238]
[1756833834058,0.7201,4306.3,4306.2,0.704]
[1756833834260,0.2048,4306.3,4306.2,0.704]
[1756833834461,0.5205,4306.3,4306.2,0.704]
[1756833834662,0.7201,4306.3,4306.2,0.1986]
[1756833834959,0.7201,4306.3,4306.2,0.704]
[1756833835161,0.4044,4306.3,4306.2,0.704]
[1756833835457,0.7201,4306.3,4306.2,0.704]
[1756833836859,0.2048,4306.3,4306.2,0.704]
[1756833837056,0.2048,4306.4,4306.3,0.704]
[1756833837251,0.7201,4306.4,4306.3,0.704]
[1756833837657,0.3157,4306.7,4306.3,0.704]
[1756833837862,3.4126,4306.8,4306.7,0.704]
[1756833838051,0.7201,4306.8,4306.7,0.704]
[1756833839151,0.7201,4306.8,4306.7,0.403]
[1756833839350,0.7201,4306.8,4306.4,0.301]
[1756833839554,0.7201,4306.8,4306.0,0.301]
[1756833840862,3.9279,4306.8,4306.0,0.301]
[1756833842254,3.9279,4306.8,4306.7,0.1986]
[1756833842559,3.9279,4306.8,4306.7,0.704]
[1756833842760,0.7201,4306.8,4306.7,0.704]
[1756833843676,0.4044,4306.5,4306.0,0.301]
[1756833843862,0.3157,4306.9,4306.0,0.301]
[1756833844160,0.7201,4306.1,4306.0,0.704]
[1756833844762,0.4044,4306.1,4305.8,3.2078]
[1756833844960,0.7201,4306.0,4305.9,0.301]
[1756833845152,0.7201,4306.0,4305.9,0.1986]
[1756833845553,0.3157,4305.9,4305.8,3.2078]
[1756833845758,0.7201,4305.9,4305.8,0.1986]
[1756833846769,0.7201,4305.9,4305.3,3.2078]
[1756833847064,3.2078,4306.4,4305.3,3.2078]
[1756833847065,0.7201,4305.5,4305.4,0.4366]
[1756833847465,0.7201,4305.5,4305.4,0.7376]
[1756833847662,0.7201,4305.5,4305.4,0.942]
[1756833848968,0.4044,4305.5,4304.8,0.301]
[1756833849169,0.4044,4304.9,4304.8,0.704]
[1756833849358,0.7201,4304.9,4304.8,0.942]
[1756833849558,3.2078,4305.8,4304.8,0.942]
[1756833849858,0.2048,4305.0,4304.9,0.704]
[1756833850064,0.7201,4305.0,4304.9,0.704]
[1756833852066,0.7201,4305.0,4304.9,0.403]
[1756833852271,0.7201,4305.0,4304.9,0.1986]
[1756833852866,0.7201,4305.0,4304.9,0.6957]
[1756833853773,0.3098,4305.7,4305.0,0.292]
[1756833853973,0.2142,4305.1,4305.0,0.7012]
[1756833854270,0.7337,4305.1,4305.0,0.7012]
[1756833854671,0.3098,4305.6,4305.1,0.292]
[1756833854872,0.524,4305.6,4305.5,0.7012]
[1756833855075,0.7337,4305.6,4305.5,0.7012]
[1756833856375,3.33,4306.5,4305.5,0.7012]
[1756833856376,0.7337,4306.5,4306.4,0.7012]
[1756833857275,0.7337,4306.5,4306.4,0.2041]
[1756833857477,0.7337,4306.5,4306.4,0.7012]
[1756833858175,0.7337,4306.5,4306.4,0.2041]
[1756833860577,0.7337,4306.5,4306.4,0.4961]
[1756833860777,0.7337,4306.5,4306.4,0.7012]
[1756833860979,3.5176,4307.0,4306.5,0.292]
[1756833861179,3.9415,4307.0,4306.9,0.2041]
[1756833861380,4.54935503,4307.0,4306.9,0.4961]
[1756833862180,4.54935503,4307.0,4306.9,0.2041]
[1756833862677,0.4239,4306.2,4306.1,0.8782]
[1756833862883,0.3098,4306.9,4306.1,0.5862]
[1756833863182,0.3098,4306.9,4306.2,0.292]
[1756833863378,0.524,4306.3,4306.2,0.7012]
[1756833863683,0.7337,4306.3,4306.2,0.7012]
[1756833864183,0.3098,4306.7,4306.3,0.292]
[1756833864376,0.524,4306.7,4306.6,0.4092]
[1756833864578,0.3098,4307.0,4306.6,0.4092]
[1756833864780,0.7337,4307.9,4307.8,0.7012]
[1756833865484,0.3842,4308.9,4308.8,0.4092]
[1756833865679,0.17,4308.9,4308.8,3.909]
[1756833866782,0.9037,4308.9,4308.8,3.909]
[1756833866982,0.9037,4308.9,4308.8,4.147]
[1756833867382,0.9037,4308.9,4308.8,3.617]
[1756833867583,0.9037,4308.9,4308.8,3.2078]
[1756833871392,8.1115,4308.9,4308.0,0.237]
[1756833871588,4.1115,4308.9,4308.0,0.237]
[1756833871784,4.1115,4308.9,4308.1,0.292]
[1756833876689,0.7337,4307.8,4307.7,0.2041]
[1756833877192,0.7337,4307.5,4307.4,0.7012]
[1756833877790,0.7337,4307.5,4307.4,0.2041]
[1756833878585,0.7337,4307.5,4307.3,3.2078]
[1756833878790,0.4239,4307.1,4307.0,0.237]
[1756833879094,0.7337,4307.1,4307.0,0.7331]
[1756833879290,0.7337,4307.1,4307.0,0.9382]
[1756833880292,0.7337,4307.1,4307.0,0.7012]
[1756833880688,0.3098,4307.0,4306.6,0.292]
[1756833880998,0.7337,4306.7,4306.6,0.7331]
[1756833881589,0.7337,4306.7,4306.6,0.4411]
[1756833882385,0.7337,4306.7,4306.6,0.7599]
[1756833882591,0.7337,4306.7,4306.6,0.2041]
[1756833882793,0.3154,4306.6,4306.4,0.3188]
[1756833882993,0.5244,4306.5,4306.4,0.7276]
[1756833884194,0.209,4306.5,4306.4,0.7276]
[1756833884393,0.7356,4307.1,4307.0,0.4088]
[1756833884593,0.7356,4307.1,4307.0,0.7276]
[1756833885993,3.2078,4307.2,4307.0,0.7276]
[1756833886195,0.3154,4307.8,4307.4,0.4088]
[1756833886393,0.17,4308.9,4307.4,0.4088]
[1756833886394,0.3154,4308.3,4307.6,0.3188]
[1756833886795,0.4202,4307.7,4307.3,0.237]
[1756833886998,0.7356,4307.4,4307.3,0.7581]
[1756833887188,0.7356,4307.4,4307.3,0.9646]
[1756833887392,0.209,4307.4,4307.3,0.9646]
[1756833888296,0.7356,4307.4,4307.3,0.6458]
[1756833888496,0.7356,4307.4,4307.3,0.9646]
[1756833889193,0.7356,4307.4,4307.3,0.7276]
[1756833889598,0.7356,4307.4,4307.3,0.4088]
[1756833889998,0.7356,4307.4,4307.3,0.7276]
[1756833890604,0.209,4307.4,4307.3,0.7276]
[1756833891601,0.7356,4307.4,4307.3,0.4088]
[1756833891796,0.7356,4307.4,4307.3,0.7276]
[1756833892700,0.5244,4308.4,4308.3,0.2065]
[1756833892899,0.5244,4308.4,4308.3,0.7276]
[1756833892900,0.7356,4308.4,4308.3,0.7276]
[1756833893701,0.7356,4308.4,4308.3,0.4088]
[1756833894105,0.7356,4308.4,4307.7,3.2078]
[1756833894403,0.4202,4307.8,4307.7,3.6166]
[1756833894595,0.7356,4307.8,4307.7,3.9354]
[1756833895999,0.7356,4307.8,4307.7,0.7276]
[1756833896399,0.7356,4307.8,4307.7,0.2023]
[1756833896599,0.7356,4307.8,4307.7,0.5211]
[1756833896903,0.7356,4307.8,4307.7,0.2023]
[1756833897296,0.7356,4307.8,4307.5,0.237]
[1756833897297,3.9434,4307.8,4307.5,0.237]
[1756833897505,0.7356,4307.7,4307.6,0.2023]
[1756833898095,0.7356,4307.7,4307.2,3.5266]
[1756833898301,0.7356,4307.4,4307.3,0.7276]
[1756833899006,0.7356,4307.4,4307.3,0.2023]
[1756833899211,3.2078,4307.8,4306.9,0.237]
[1756833899212,0.3154,4307.3,4306.9,0.237]
[1756833899509,0.7356,4307.0,4306.9,0.7581]
[1756833899698,0.7356,4307.0,4306.9,0.9646]
[1756833900305,0.3154,4306.9,4306.7,3.2078]
[1756833900501,0.7356,4306.8,4306.7,3.2078]
[1756833900704,0.7356,4306.8,4306.2,3.4448]
[1756833900901,0.1247,4307.0,4306.6,0.2023]
[1756833901102,0.7356,4306.7,4306.6,0.5211]
[1756833901301,0.7356,4306.7,4306.6,0.7276]
[1756833901713,0.3154,4307.1,4306.6,0.4088]
[1756833902007,0.7356,4306.8,4306.7,0.7276]
[1756833903712,0.7356,4306.8,4306.7,0.4088]
[1756833904008,0.7356,4306.8,4306.2,3.2078]
[1756833904009,0.3154,4306.7,4306.2,3.2078]
[1756833904205,0.209,4306.7,4306.6,0.4088]
[1756833904403,0.7356,4306.7,4306.6,0.7276]
[1756833905510,0.3154,4307.2,4306.6,0.7276]
[1756833905814,0.4202,4306.8,4306.7,0.4088]
[1756833906010,0.7356,4306.8,4306.7,0.7276]
[1756833907209,3.2078,4307.8,4306.7,3.9354]
[1756833907409,0.3154,4308.2,4307.7,0.3188]
[1756833907611,3.2078,4308.5,4308.1,0.4088]
[1756833907817,0.4202,4308.3,4308.2,0.7276]
[1756833908013,0.7356,4308.3,4308.2,0.7276]
[1756833908209,0.3154,4308.2,4307.8,0.237]
[1756833908409,0.5244,4308.1,4308.0,0.4088]
[1756833908604,4.7356,4308.1,4307.2,0.237]
[1756833908804,3.3325,4308.5,4307.2,0.6458]
[1756833909004,0.81541214,4308.4,4308.3,0.7276]
[1756833909213,1.13081214,4308.4,4308.3,0.7276]
[1756833909408,0.5244,4308.4,4308.3,0.7276]
[1756833909608,0.7356,4308.4,4308.3,0.7276]
[1756833910106,0.17,4308.9,4308.4,0.3188]
[1756833910311,0.17,4308.9,4308.8,0.7276]
[1756833912413,0.17,4308.9,4308.8,0.9646]
[1756833912613,0.17,4308.9,4308.8,1.19668]
[1756833912814,0.17,4308.9,4308.8,0.9646]
[1756833918523,0.8827,4308.9,4308.8,0.7276]
[1756833918921,0.8827,4308.9,4308.8,0.9646]
[1756833919423,0.8827,4308.9,4308.8,0.6458]
[1756833920323,0.8827,4308.9,4308.8,0.2023]
[1756833920514,0.8827,4308.9,4308.8,0.237]
[1756833920720,0.5851,4308.9,4308.7,3.4448]
[1756833921020,0.7127,4308.8,4308.7,3.4448]
[1756833921324,0.7127,4308.8,4308.7,3.653]
[1756833921920,0.7127,4308.8,4308.7,3.2078]
[1756833922127,0.7127,4308.8,4308.4,0.237]
[1756833922323,0.4151,4308.8,4308.7,0.2082]
[1756833922625,0.2089,4308.8,4308.7,0.7134]
[1756833922826,0.2089,4308.8,4308.7,3.9212]
[1756833923022,0.17,4308.9,4308.8,0.7134]
[1756833923922,0.2976,4310.1,4308.9,0.41769]
[1756833924128,0.7127,4310.1,4310.0,0.2082]
[1756833924322,0.1216,4310.0,4309.7,0.237]
[1756833924630,0.7127,4309.8,4309.7,0.4452]